bitfinex/quotes_SOLUSD_20250929
["timestamp","ask_amount","ask_price","bid_price","bid_amount"]
[1759183480895,0.71,214.34,214.31,33.70000001]
[1759183481281,136.26514309,214.36,214.31,33.70000001]
[1759183481480,136.97514309,214.36,214.31,33.70000001]
[1759183481680,136.97514309,214.36,214.31,34.42000001]
[1759183481873,0.71,214.35,214.31,34.42000001]
[1759183482590,131.6,214.36,214.32,0.72]
[1759183484388,4.6649223,214.37,214.33,33.62]
[1759183484591,5.3749223,214.37,214.33,33.62]
[1759183484796,0.71,214.37,214.33,33.62]
[1759183485501,4.66461439,214.38,214.33,33.62]
[1759183485686,4.66461439,214.38,214.34,0.72]
[1759183485889,0.71,214.38,214.34,0.72]
[1759183486601,0.71,214.38,214.34,5.38541393]
[1759183487507,5.37413979,214.41,214.34,4.66541393]
[1759183487693,5.37413979,214.41,214.35,0.72]
[1759183487891,3.12766126,214.42,214.35,0.72]
[1759183488188,131.6,214.43,214.35,0.72]
[1759183488499,132.31,214.43,214.35,0.72]
[1759183488877,136.97358309,214.43,214.36,4.66504944]
[1759183489086,136.97358309,214.43,214.37,33.58]
[1759183490599,136.97358309,214.43,214.38,4.66461423]
[1759183490987,0.71,214.42,214.38,4.66461423]
[1759183492403,0.71,214.42,214.38,5.33461423]
[1759183493818,0.71,214.42,214.39,33.54]
[1759183494613,0.66,214.41,214.31,1e-08]
[1759183494916,13.59559401,214.34,214.23,34.19]
[1759183495224,13.59559401,214.32,214.23,34.19]
[1759183495401,0.66,214.31,214.22,0.1]
[1759183495808,0.66,214.31,214.24,34.54]
[1759183496019,0.66,214.3,214.24,34.54]
[1759183496222,0.66,214.29,214.24,34.54]
[1759183496398,0.66,214.29,214.24,0.1]
[1759183496717,4.66700891,214.27,214.25,34.44]
[1759183496886,5.32700891,214.27,214.25,34.44]
[1759183497917,0.66,214.27,214.25,34.44]
[1759183498096,5.32701112,214.27,214.25,34.44]
[1759183498493,0.66,214.27,214.25,34.44]
[1759183498993,0.66,214.29,214.25,34.44]
[1759183500218,0.66,214.28,214.25,34.44]
[1759183500923,5.32635557,214.3,214.24,4.76761083]
[1759183501100,4.66635557,214.3,214.26,34.36]
[1759183501301,0.66,214.29,214.26,34.36]
[1759183501918,0.66,214.28,214.26,34.36]
[1759183503418,5.32681607,214.28,214.26,34.36]
[1759183504198,5.32681607,214.28,214.24,0.1]
[1759183504422,5.32681607,214.28,214.25,34.34]
[1759183504722,4.66655597,214.3,214.26,0.67]
[1759183504927,4.66655597,214.3,214.25,34.34]
[1759183505119,0.66,214.29,214.25,34.34]
[1759183505513,0.66,214.28,214.24,0.77]
[1759183505718,0.66,214.28,214.26,34.28]
[1759183505916,0.66,214.28,214.24,0.77]
[1759183506121,0.66,214.28,214.26,34.28]
[1759183508118,4.66676012,214.29,214.26,34.28]
[1759183508422,131.6,214.31,214.26,34.28]
[1759183508620,131.6,214.31,214.27,0.67]
[1759183509830,4.66592926,214.32,214.27,34.24]
[1759183510038,0.66,214.31,214.27,34.24]
[1759183511812,5.32620684,214.31,214.27,34.91]
[1759183512634,26.0,214.28,214.22,0.1]
[1759183512814,26.0,214.27,214.22,0.1]
[1759183513023,13.59559401,214.26,214.22,0.1]
[1759183513327,14.25559401,214.26,214.22,0.1]
[1759183513518,18.92296359,214.26,214.22,34.52]
[1759183513707,0.66,214.25,214.22,34.52]
[1759183517429,5.32744547,214.25,214.22,34.52]
[1759183517731,13.59559401,214.28,214.23,0.67]
[1759183517933,145.19559401,214.28,214.23,0.67]
[1759183518119,0.66,214.27,214.22,34.52]
[1759183518317,0.66,214.27,214.22,35.19]
[1759183518522,145.19559401,214.28,214.22,39.85808906]
[1759183518738,0.66,214.26,214.22,39.18808906]
[1759183519536,0.66,214.26,214.22,4.76808906]
[1759183519830,150.52241219,214.28,214.23,35.01]
[1759183520021,131.6,214.28,214.24,0.67]
[1759183520219,132.26,214.28,214.24,0.67]
[1759183520410,132.26,214.28,214.23,34.34]
[1759183520611,132.26,214.28,214.23,35.01]
[1759183521734,136.92681004,214.28,214.23,39.67779875]
[1759183522243,132.26,214.28,214.23,39.67779875]
[1759183522432,136.92682207,214.28,214.23,35.01]
[1759183523149,136.26682207,214.28,214.23,35.01]
[1759183523445,0.7,214.27,214.23,34.34]
[1759183523816,131.6,214.28,214.23,39.00787907]
[1759183524021,131.6,214.28,214.24,0.69]
[1759183524521,131.6,214.28,214.25,0.69]
[1759183524723,131.6,214.28,214.23,50.67757985]
[1759183524933,131.6,214.28,214.24,0.69]
[1759183525146,37.66410213,214.34,214.22,0.1]
[1759183525147,26.0,214.25,214.22,0.1]
[1759183525346,14.29559401,214.27,214.22,0.1]
[1759183525549,13.59559401,214.26,214.22,0.1]
[1759183525866,18.26347432,214.23,214.22,0.1]
[1759183526344,18.96347432,214.23,214.22,0.1]
[1759183528733,0.7,214.26,214.22,0.1]
[1759183528915,0.7,214.25,214.22,0.1]
[1759183529116,0.7,214.24,214.22,0.1]
[1759183529337,13.59559401,214.27,214.22,0.1]
[1759183529540,5.36722673,214.26,214.22,0.1]
[1759183530036,0.7,214.25,214.22,0.1]
[1759183530718,4.66766243,214.24,214.22,0.1]
[1759183531035,4.66699215,214.28,214.22,0.1]
[1759183531234,0.7,214.26,214.22,0.1]
[1759183531616,5.36699215,214.28,214.22,0.79]
[1759183531816,5.36699215,214.28,214.22,35.41]
[1759183532043,5.36699215,214.28,214.22,0.79]
[1759183532340,5.36699215,214.28,214.23,34.6]
[1759183532539,0.7,214.27,214.23,34.6]
[1759183534030,0.7,214.27,214.23,35.29]
[1759183534218,5.36709146,214.27,214.24,34.58]
[1759183534617,0.7,214.26,214.24,34.56]
[1759183534926,5.36754324,214.25,214.23,34.56]
[1759183535617,0.7,214.24,214.22,0.1]
[1759183536038,0.7,214.23,214.22,0.1]
[1759183536435,14.29559401,214.24,214.22,0.1]
[1759183536638,16.33615467,214.25,214.22,0.1]
[1759183536836,5.36718621,214.27,214.22,0.79]
[1759183537040,0.7,214.26,214.22,0.1]
[1759183537239,0.7,214.25,214.22,0.1]
[1759183537642,16.33470849,214.27,214.22,0.1]
[1759183537947,0.7,214.26,214.22,0.1]
[1759183538124,0.7,214.25,214.22,0.1]
[1759183538329,0.7,214.24,214.22,0.1]
[1759183538942,4.66788031,214.23,214.22,0.1]
[1759183539245,5.36788031,214.23,214.22,0.1]
[1759183539431,18.96347432,214.23,214.22,0.1]
[1759183539637,22.0816,214.23,214.22,0.1]
[1759183539837,18.96347432,214.23,214.22,0.1]
[1759183540040,22.0816,214.23,214.22,0.1]
[1759183540240,18.96347432,214.23,214.22,0.1]
[1759183540552,22.0816,214.23,214.22,0.1]
[1759183540727,18.96347432,214.23,214.22,0.1]
[1759183540928,22.0816,214.23,214.22,0.1]
[1759183541152,18.96347432,214.23,214.22,0.1]
[1759183541339,22.0816,214.23,214.22,0.1]
[1759183545657,21.3816,214.23,214.22,0.1]
[1759183545842,22.0816,214.23,214.22,0.1]
[1759183546176,21.3816,214.23,214.22,0.1]
[1759183546365,22.0816,214.23,214.22,0.1]
[1759183546673,7.78600599,214.23,214.22,0.1]
[1759183546973,8.48600599,214.23,214.22,0.1]
[1759183547470,7.78600599,214.23,214.22,0.1]
[1759183548371,3.11812568,214.23,214.22,0.1]
[1759183548661,131.6,214.24,214.22,0.79]
[1759183552549,131.6,214.24,214.23,0.72]
[1759183556063,4.6659613,214.32,214.23,5.38788031]
[1759183556272,3.13138266,214.31,214.24,0.72]
[1759183556458,3.13138266,214.32,214.25,34.26]
[1759183556657,3.13138266,214.31,214.26,0.72]
[1759183556965,3.13138266,214.32,214.26,0.72]
[1759183557172,7.79712059,214.33,214.26,0.72]
[1759183558266,3.13138266,214.33,214.27,4.66700891]
[1759183558467,3.13138266,214.33,214.27,5.38700891]
[1759183558641,3.13138266,214.33,214.28,0.72]
[1759183558845,3.13138266,214.33,214.29,0.72]
[1759183559055,5.32554896,214.34,214.3,34.24]
[1759183559261,8.45693162,214.34,214.3,34.24]
[1759183559466,5.32554896,214.34,214.3,34.24]
[1759183559658,3.13138266,214.35,214.3,39.62635252]
[1759183559962,8.45665331,214.35,214.3,39.62635252]
[1759183560170,8.45665331,214.35,214.3,38.90635252]
[1759183560348,8.45665331,214.35,214.3,39.62635252]
[1759183561364,8.45665331,214.35,214.3,34.96]
[1759183561767,8.45665331,214.35,214.3,38.90629041]
[1759183561958,8.45665331,214.35,214.3,39.62629041]
[1759183562158,5.32527065,214.35,214.3,39.62629041]
[1759183562977,0.66,214.34,214.3,39.62629041]
[1759183563551,4.66527065,214.35,214.3,39.62629041]
[1759183563753,5.32527065,214.35,214.31,0.72]
[1759183564271,5.32532577,214.35,214.31,0.72]
[1759183564468,5.32532577,214.35,214.31,34.86]
[1759183564674,5.32532577,214.35,214.31,34.14]
[1759183565376,0.66,214.35,214.31,34.14]
[1759183565570,136.26505608,214.36,214.32,0.72]
[1759183565771,136.26505608,214.36,214.31,38.80608822]
[1759183565975,0.66,214.35,214.31,38.80608822]
[1759183568375,0.66,214.35,214.31,39.52608822]
[1759183568556,136.26505608,214.36,214.31,39.52608822]
[1759183568756,0.66,214.35,214.31,38.80608822]
[1759183568969,5.32527807,214.35,214.31,34.14]
[1759183569580,0.66,214.34,214.31,34.14]
[1759183569877,4.66527807,214.35,214.31,34.06]
[1759183569878,0.66,214.33,214.31,34.06]
[1759183570073,0.66,214.32,214.31,34.06]
[1759183570478,0.66,214.32,214.3,34.06]
[1759183570673,0.66,214.31,214.24,4.66748077]
[1759183570876,0.66,214.3,214.27,34.06]
[1759183571058,0.66,214.29,214.27,34.06]
[1759183571761,4.66570242,214.33,214.27,34.06]
[1759183571960,0.66,214.32,214.27,34.06]
[1759183572162,0.66,214.31,214.27,34.06]
[1759183572358,0.66,214.3,214.27,34.06]
[1759183573088,4.66657333,214.29,214.24,31.38766163]
[1759183573382,5.32657333,214.29,214.25,34.06]
[1759183573785,4.66657333,214.29,214.25,34.78]
[1759183574290,5.32657333,214.29,214.25,34.78]
[1759183574665,0.72,214.28,214.22,0.77]
[1759183574876,0.72,214.28,214.23,34.04]
[1759183575168,5.38702575,214.27,214.23,34.04]
[1759183575363,5.38702575,214.27,214.22,0.77]
[1759183575677,0.72,214.26,214.22,34.12]
[1759183575879,0.72,214.25,214.22,34.12]
[1759183576082,0.72,214.24,214.22,34.12]
[1759183577185,5.38774481,214.24,214.22,34.12]
[1759183577372,0.72,214.23,214.22,0.1]
[1759183577770,4.66774481,214.24,214.22,0.1]
[1759183578278,0.72,214.23,214.22,0.1]
[1759183578657,4.66774481,214.24,214.22,0.1]
[1759183579084,0.72,214.23,214.22,0.1]
[1759183579280,5.38788031,214.23,214.22,0.1]
[1759183579866,4.66788031,214.23,214.22,0.1]
[1759183580066,5.38764332,214.25,214.22,0.1]
[1759183580285,4.66725265,214.26,214.22,0.77]
[1759183580476,5.38725265,214.26,214.22,0.1]
[1759183581274,3.12468956,214.28,214.22,0.1]
[1759183581275,3.12468956,214.28,214.23,0.67]
[1759183581585,0.69,214.3,214.23,34.67]
[1759183581791,0.69,214.3,214.24,0.67]
[1759183582167,4.66664236,214.29,214.24,0.67]
[1759183582371,0.69,214.29,214.24,0.67]
[1759183582906,4.66616741,214.31,214.25,0.67]
[1759183583982,4.66616741,214.31,214.25,5.33726971]
[1759183586187,0.69,214.31,214.25,5.33726971]
[1759183587284,5.35615738,214.31,214.25,5.33726971]
[1759183587484,0.69,214.3,214.22,0.77]
[1759183587684,0.69,214.3,214.23,33.92]
[1759183587981,0.69,214.29,214.23,33.92]
[1759183588190,0.69,214.28,214.22,0.1]
[1759183589175,5.35695954,214.28,214.22,0.1]
[1759183589406,5.35695954,214.28,214.22,0.77]
[1759183590192,5.35695954,214.28,214.22,0.1]
[1759183592100,5.35695954,214.28,214.22,0.77]
[1759183593284,5.35695954,214.28,214.22,5.43803516]
[1759183593490,5.35714913,214.27,214.22,5.43803516]
[1759183593798,0.69,214.26,214.22,5.43803516]
[1759183594098,0.69,214.26,214.22,0.1]
[1759183595293,5.35733748,214.26,214.22,0.1]
[1759183595803,5.35733748,214.26,214.22,0.77]
[1759183595804,0.69,214.26,214.22,0.77]
[1759183598403,5.35723523,214.26,214.22,0.77]
[1759183598703,5.35686766,214.28,214.22,4.76804641]
[1759183598905,0.69,214.27,214.22,5.43804641]
[1759183599286,4.66686766,214.28,214.22,4.76804641]
[1759183599501,0.69,214.27,214.22,4.76804641]
[1759183599794,0.69,214.26,214.22,5.43804641]
[1759183600177,5.35686766,214.28,214.22,4.76804641]
[1759183600374,0.69,214.27,214.22,5.43804641]
[1759183600775,0.69,214.26,214.22,5.43804641]
[1759183600998,5.35686766,214.28,214.22,5.43804641]
[1759183601193,0.69,214.27,214.22,5.43804641]
[1759183601601,4.66686766,214.28,214.22,5.43804641]
[1759183601806,0.69,214.27,214.22,5.43804641]
[1759183602713,0.69,214.26,214.22,4.76804641]
[1759183602884,5.35724049,214.26,214.22,0.77]
[1759183604407,0.69,214.25,214.22,0.1]
[1759183604907,0.69,214.24,214.22,0.1]
[1759183605409,13.59559401,214.23,214.22,0.1]
[1759183605598,14.28559401,214.23,214.22,0.1]
[1759183606809,18.95347432,214.23,214.22,0.1]
[1759183612416,22.07816388,214.23,214.22,0.1]
[1759183612592,22.07816388,214.23,214.2,0.1]
[1759183612914,22.07816388,214.23,214.12,0.1]
[1759183612915,41.4372373,214.21,214.12,0.1]
[1759183613098,13.59559401,214.16,214.12,0.1]
[1759183613493,13.59559401,214.14,214.12,0.1]
[1759183613915,0.67,214.13,214.12,0.1]
[1759183614710,5.34006024,214.13,214.12,0.1]
[1759183615432,3.12468956,214.16,214.12,0.1]
[1759183615605,14.26559401,214.15,214.12,0.1]
[1759183616816,5.33984215,214.14,214.12,0.1]
[1759183617316,0.67,214.13,214.12,0.1]
[1759183617525,4.66984215,214.14,214.12,0.1]
[1759183618215,5.33984215,214.14,214.12,0.1]
[1759183618730,145.86559401,214.13,214.12,0.1]
[1759183618898,150.53565425,214.13,214.12,0.1]
[1759183620211,18.93565425,214.13,214.12,0.1]
[1759183620597,20.77729754,214.13,214.12,0.1]
[1759183621818,39.59559401,214.1,214.09,1e-08]
[1759183622020,39.59559401,214.1,214.04,0.1]
[1759183622021,13.59559401,214.05,214.04,0.1]
[1759183622215,39.59559401,214.03,214.02,0.1]
[1759183622413,49.2172373,214.03,214.02,0.1]
[1759183622715,49.8872373,214.03,214.02,0.1]
[1759183623306,16.1072373,214.03,214.02,0.1]
[1759183623502,20.7794795,214.03,214.02,0.1]
[1759183623731,18.26783621,214.03,214.02,0.1]
[1759183623900,18.93783621,214.03,214.02,0.1]
[1759183627925,18.93783621,214.03,213.93,0.69]
[1759183627926,13.59559401,214.0,213.93,0.69]
[1759183628129,13.59559401,213.93,213.9,0.1]
[1759183628429,1.84164329,213.97,213.9,0.79]
[1759183628604,13.59559401,213.96,213.9,0.79]
[1759183629122,13.59559401,214.0,213.9,5.4650783]
[1759183629442,13.59559401,213.98,213.91,0.69]
[1759183629630,18.26899237,213.98,213.91,0.69]
[1759183630709,4.67303073,214.0,213.91,5.36479153]
[1759183630899,13.59559401,213.99,213.92,0.69]
[1759183631606,4.67333395,213.98,213.92,0.69]
[1759183634022,5.34312134,213.99,213.92,5.36456206]
[1759183634323,5.34312134,213.99,213.93,0.69]
[1759183636824,4.67312134,213.99,213.93,5.36441412]
[1759183637140,13.59559401,214.02,213.94,0.67]
[1759183638504,131.6,214.02,213.94,0.67]
[1759183638915,131.6,214.02,213.95,4.67398924]
[1759183639121,136.97245185,214.03,213.96,0.67]
[1759183640908,136.97245185,214.03,213.96,5.34371206]
[1759183642321,136.97245185,214.03,213.96,5.19371206]
[1759183642637,0.72,214.02,213.96,5.19371206]
[1759183643522,5.3925095,214.02,213.96,5.19371206]
[1759183643839,131.6,214.03,213.96,4.67371206]
[1759183644028,50.18429872,214.07,213.9,0.1]
[1759183644338,0.72,214.02,213.92,26.0]
[1759183644514,0.72,214.01,213.92,26.67]
[1759183644716,0.72,214.0,213.93,30.67442621]
[1759183645021,0.72,214.0,213.93,31.34442621]
[1759183646632,0.72,214.0,213.93,30.67442621]
[1759183646820,5.39266271,214.02,213.94,0.67]
[1759183647019,4.67209979,214.04,213.94,0.67]
[1759183647212,5.39209979,214.04,213.94,0.67]
[1759183648136,5.39209979,214.04,213.95,4.67398924]
[1759183648346,5.39209979,214.04,213.96,0.67]
[1759183650016,5.39209979,214.04,213.97,4.67355236]
[1759183650219,0.72,214.04,213.97,4.67355236]
[1759183650441,0.72,214.04,213.98,0.67]
[1759183652059,5.39211227,214.04,213.98,5.34324571]
[1759183652548,0.72,214.04,213.98,5.34324571]
[1759183654026,5.39244662,214.03,213.98,0.67]
[1759183654235,5.39244662,214.03,213.99,0.67]
[1759183655144,5.39244662,214.03,213.97,8.232233]
[1759183655841,5.39244662,214.03,213.98,5.3433241]
[1759183656751,3.10275715,214.05,214.01,2.88870471]
[1759183657054,131.6,214.06,214.02,0.67]
[1759183657252,3.1199002,214.05,214.02,0.67]
[1759183659257,3.1199002,214.05,214.02,5.34230256]
[1759183659478,7.79103264,214.09,214.03,3.55870471]
[1759183659655,3.8399002,214.08,214.03,3.55870471]
[1759183659840,3.8399002,214.08,214.04,3.55870471]
[1759183660348,3.1199002,214.08,214.04,7.56068911]
[1759183660546,0.72,214.1,214.06,2.88870471]
[1759183660750,8.51071684,214.1,214.05,0.67]
[1759183660950,3.8399002,214.09,214.05,0.67]
[1759183661335,0.72,214.09,214.05,0.67]
[1759183662657,5.39104192,214.09,214.05,0.67]
[1759183663045,0.72,214.09,214.05,5.34172671]
[1759183663439,0.72,214.09,214.05,0.67]
[1759183664339,5.39101863,214.09,214.05,0.67]
[1759183664533,5.39101863,214.09,214.05,3.55870471]
[1759183664758,0.72,214.08,214.05,2.88870471]
[1759183665360,0.72,214.07,213.98,3.55870471]
[1759183665546,0.72,214.06,213.98,3.55870471]
[1759183665859,0.72,214.05,213.98,3.55870471]
[1759183666060,0.72,214.04,213.98,8.23189808]
[1759183667362,5.39205187,214.04,213.98,8.23189808]
[1759183668065,5.39205187,214.04,213.99,0.67]
[1759183668241,0.72,214.07,214.0,2.88870471]
[1759183668437,0.72,214.07,214.02,2.88870471]
[1759183668638,3.8399002,214.09,214.03,0.67]
[1759183668966,0.72,214.09,214.03,0.67]
[1759183669161,5.39109202,214.09,214.03,5.34211477]
[1759183671170,5.39109202,214.09,214.04,7.56068265]
[1759183671356,0.67,214.08,214.04,3.58870471]
[1759183671972,0.67,214.08,214.04,8.26070234]
[1759183672272,4.67109202,214.09,214.04,8.26070234]
[1759183672470,4.67109202,214.09,214.04,2.88870471]
[1759183672471,0.67,214.08,214.04,2.88870471]
[1759183672849,4.67109202,214.09,214.04,2.88870471]
[1759183673055,0.67,214.09,214.05,0.7]
[1759183673667,0.67,214.08,214.04,7.5606959]
[1759183673971,0.67,214.08,214.04,8.2606959]
[1759183674169,19.46676354,214.11,214.04,8.2606959]
[1759183674358,0.67,214.1,214.04,8.2606959]
[1759183674758,0.67,214.09,214.04,8.2606959]
[1759183675467,0.67,214.09,214.05,0.7]
[1759183676270,4.66984215,214.14,214.06,3.58870471]
[1759183676482,0.67,214.13,214.07,0.7]
[1759183677057,0.67,214.13,214.08,2.88870471]
[1759183677269,0.67,214.13,214.08,3.58870471]
[1759183677466,3.12567979,214.14,214.09,0.7]
[1759183677667,5.33964933,214.15,214.1,2.88870471]
[1759183677883,8.46532912,214.15,214.1,3.58870471]
[1759183678063,5.33964933,214.15,214.1,3.58870471]
[1759183678556,5.33964933,214.15,214.1,8.25934141]
[1759183679986,0.67,214.15,214.1,8.25934141]
[1759183680164,5.33964852,214.15,214.1,3.58870471]
[1759183681169,5.33964852,214.15,214.1,8.25935152]
[1759183681687,0.67,214.15,214.11,0.7]
[1759183681888,0.67,214.15,214.1,7.55935152]
[1759183682180,0.67,214.15,214.1,5.37064681]
[1759183682582,5.33963611,214.15,214.1,5.37064681]
[1759183683567,5.33963611,214.15,214.11,0.7]
[1759183683770,0.67,214.15,214.11,5.37047248]
[1759183684561,0.67,214.18,214.12,0.7]
[1759183684768,4.66892793,214.19,214.13,33.38]
[1759183684968,5.33892793,214.19,214.13,36.96870471]
[1759183686089,5.33892793,214.19,214.14,4.66984215]
[1759183686293,0.67,214.18,214.14,4.66984215]
[1759183687371,0.67,214.18,214.14,5.36984215]
[1759183688472,0.67,214.17,214.13,33.38]
[1759183688668,0.67,214.16,214.13,33.38]
[1759183688874,0.67,214.15,214.09,33.38]
[1759183689510,0.67,214.14,214.09,33.38]
[1759183689671,0.67,214.13,214.09,33.38]
[1759183689872,5.34023292,214.13,214.09,33.38]
[1759183690068,0.67,214.12,214.09,33.38]
[1759183690272,4.67023292,214.13,214.09,33.38]
[1759183690493,0.67,214.12,214.09,33.38]
[1759183690672,5.34023292,214.13,214.09,34.08]
[1759183690876,5.34023292,214.13,214.09,33.38]
[1759183691769,5.34023292,214.13,214.09,34.08]
[1759183691975,0.67,214.16,214.1,0.7]
[1759183692180,0.67,214.16,214.09,38.05084247]
[1759183692181,5.33940605,214.16,214.09,38.75084247]
[1759183692380,0.67,214.15,214.09,38.75084247]
[1759183692576,0.67,214.15,214.09,34.08]
[1759183692876,0.67,214.14,214.09,34.08]
[1759183694094,5.33995602,214.14,214.1,0.7]
[1759183695073,0.7,214.13,214.09,33.38]
[1759183695379,0.7,214.12,214.08,33.34]
[1759183695578,0.7,214.12,214.08,34.05]
[1759183696198,5.37031182,214.12,214.08,34.05]
[1759183696394,5.36996969,214.14,214.09,0.71]
[1759183696698,4.66966767,214.15,214.09,0.71]
[1759183697080,5.36941268,214.16,214.09,0.71]
[1759183697878,0.7,214.16,214.09,0.71]
[1759183698500,5.36953769,214.16,214.1,4.67071461]
[1759183698805,5.36953769,214.16,214.1,5.38071461]
[1759183699996,5.36953769,214.16,214.08,45.01787742]
[1759183699997,5.36953769,214.16,214.09,4.67093278]
[1759183700297,5.36953769,214.16,214.1,0.71]
[1759183700896,0.7,214.16,214.1,0.71]
[1759183701079,5.36923015,214.17,214.1,0.71]
[1759183702998,0.7,214.17,214.1,0.71]
[1759183703200,13.59559401,214.16,214.08,26.0]
[1759183703409,0.72,214.15,214.09,33.3]
[1759183703572,0.72,214.14,214.09,33.3]
[1759183703775,0.72,214.13,214.09,33.3]
[1759183703988,0.72,214.12,214.09,33.3]
[1759183704189,0.72,214.11,214.04,5.34186095]
[1759183704383,0.72,214.1,214.05,33.3]
[1759183704585,0.72,214.09,214.05,33.97]
[1759183705783,0.72,214.11,214.05,37.97172787]
[1759183706189,0.72,214.11,214.05,38.64172787]
[1759183706588,0.72,214.1,214.05,38.64172787]
[1759183706790,0.72,214.09,214.05,38.64172787]
[1759183707102,0.72,214.08,214.03,0.67]
[1759183707302,0.72,214.08,214.01,0.67]
[1759183707483,0.72,214.08,214.02,33.3]
[1759183707682,0.72,214.07,214.02,33.3]
[1759183707884,13.59559401,214.11,214.02,33.3]
[1759183708109,13.59559401,214.09,214.02,33.3]
[1759183708408,0.72,214.08,214.02,33.3]
[1759183708598,0.72,214.07,214.01,48.36150969]
[1759183708780,0.72,214.07,214.01,33.97]
[1759183709196,4.6715874,214.06,214.01,33.97]
[1759183709401,5.3915874,214.06,214.02,0.67]
[1759183709705,5.3913189,214.08,214.03,0.67]
[1759183709876,0.72,214.07,214.01,38.64260215]
[1759183710188,0.72,214.07,214.02,0.67]
[1759183712035,131.6,214.1,214.03,0.67]
[1759183712036,5.39091566,214.1,214.03,0.67]
[1759183712701,18.91321859,214.1,214.01,33.3]
[1759183712906,17.4414476,214.09,214.01,33.3]
[1759183713205,13.59559401,214.07,213.98,0.67]
[1759183713712,13.59559401,214.05,213.98,0.67]
[1759183714018,4.6722422,214.03,213.98,0.67]
[1759183714221,5.3922422,214.03,213.98,0.67]
[1759183714583,4.67201714,214.05,213.98,4.67328652]
[1759183714783,5.39201714,214.05,213.99,0.67]
[1759183716180,5.39201714,214.05,213.99,5.34306626]
[1759183716380,4.67201714,214.05,213.99,5.34306626]
[1759183716586,0.72,214.04,213.99,5.34306626]
[1759183716799,4.67201714,214.05,213.99,5.34306626]
[1759183717026,0.72,214.03,213.99,5.34306626]
[1759183718602,5.39224635,214.03,213.99,0.67]
[1759183721103,0.72,214.03,213.99,0.67]
[1759183727909,4.67180565,214.05,214.0,0.67]
[1759183728429,143.27908584,214.06,214.01,0.67]
[1759183728430,136.27159595,214.06,214.01,0.67]
[1759183728597,0.72,214.05,214.02,0.67]
[1759183729093,0.72,214.05,214.01,33.32]
[1759183729420,0.72,214.04,214.01,33.32]
[1759183730803,136.99159595,214.06,214.01,33.99]
[1759183731012,0.72,214.05,214.01,33.99]
[1759183731518,0.72,214.05,214.01,33.49]
[1759183733623,5.39182045,214.05,214.01,33.49]
[1759183734502,0.65,214.04,213.97,14.1413992]
[1759183734709,0.65,214.03,213.96,37.99376894]
[1759183734911,0.65,214.02,213.96,33.32]
[1759183735112,0.65,214.01,213.96,33.32]
[1759183735307,0.65,214.0,213.96,33.32]
[1759183735508,4.67333395,213.98,213.96,33.32]
[1759183735918,4.67333395,213.98,213.95,33.32]
[1759183736114,4.67333395,213.98,213.95,33.98]
[1759183736812,0.65,214.03,213.96,0.66]
[1759183737034,0.65,214.02,213.96,0.66]
[1759183737907,5.32251853,214.02,213.96,5.33356555]
[1759183738108,5.32251853,214.02,213.97,0.66]
[1759183738313,5.32251853,214.02,213.96,4.67356555]
[1759183738314,5.32251853,214.02,213.98,0.66]
[1759183738826,5.32221813,214.04,213.99,0.66]